fUSD/lending_fUSD_20260506
["ID","MTS","AMOUNT","RATE_DAILY","PERIOD"]
[421647631,1778016643000,-1352.19909193,0.00013175,2]
[421647632,1778016643000,-163.8919,0.00013349,2]
[421647630,1778016643000,-190.69,0.00013143,2]
[421647633,1778016643000,-500.0,0.00013389,2]
[421647641,1778016643000,-500.0,0.00013389,2]
[421647638,1778016643000,-150.5821302,0.00013389,2]
[421647640,1778016643000,-163.21482146,0.00013389,2]
[421647639,1778016643000,-500.0,0.00013389,2]
[421647646,1778016643000,-14307.8893307,0.00013484,2]
[421647650,1778016643000,-150.0,0.00013488,2]
[421647629,1778016643000,-161.86,0.00013059,2]
[421647634,1778016643000,-177.65255399,0.00013389,2]
[421647614,1778016643000,-464.46,0.00012097,2]
[421647624,1778016643000,-1852.42,0.00012876,2]
[421647648,1778016643000,-150.0,0.00013488,2]
[421647609,1778016643000,-346.4546635,0.00012,2]
[421647611,1778016643000,-76.7160445,0.00012,2]
[421647612,1778016643000,-11817.03809735,0.00012,2]
[421647613,1778016643000,-14307.8893307,0.00012069,2]
[421647616,1778016643000,-161.86,0.00012126,2]
[421647626,1778016643000,-2331.0,0.00012929,2]
[421647618,1778016643000,-464.46,0.00012433,2]
[421647615,1778016643000,-4017.28744181,0.00012097,2]
[421647620,1778016643000,-464.46,0.00012769,2]
[421647623,1778016643000,-324.01,0.00012875,2]
[421647622,1778016643000,-433.0,0.00012856,2]
[421647621,1778016643000,-703.31067645,0.00012843,2]
[421647619,1778016643000,-14307.8893307,0.00012541,2]
[421647617,1778016643000,-166.56,0.00012329,2]
[421647644,1778016643000,-2000.0,0.00013467,2]
[421647625,1778016643000,-587.0,0.00012911,2]
[421647647,1778016643000,-150.0,0.00013488,2]
[421647683,1778016643000,-1352.19909193,0.00014253,2]
[421647665,1778016643000,-462.86,0.00013653,2]
[421647678,1778016643000,-161.86,0.00013992,2]
[421647668,1778016643000,-500.0,0.00013698,2]
[421647667,1778016643000,-500.0,0.00013698,2]
[421647671,1778016643000,-173.08,0.00013699,2]
[421647677,1778016643000,-14307.8893307,0.00013956,2]
[421647673,1778016643000,-200.0,0.00013699,2]
[421647679,1778016643000,-250.0,0.00014,2]
[421647680,1778016643000,-1352.19909193,0.00014037,2]
[421647681,1778016643000,-736.0,0.00014106,2]
[421647682,1778016643000,-823.0,0.00014193,2]
[421647685,1778016643000,-379.09891,0.00014406,2]
[421647684,1778016643000,-173.08,0.00014384,2]
[421647675,1778016643000,-1352.19909193,0.00013822,2]
[421647666,1778016643000,-468.84,0.00013664,2]
[421647669,1778016643000,-393.15529388,0.00013698,2]
[421647656,1778016643000,-462.86,0.00013554,2]
[421647657,1778016643000,-462.86,0.00013569,2]
[421647649,1778016643000,-150.0,0.00013488,2]
[421647643,1778016643000,-1352.19909193,0.0001339,2]
[421647651,1778016643000,-277.74074227,0.00013488,2]
[421647652,1778016643000,-468.84,0.00013493,2]
[421647659,1778016643000,-462.90950616,0.00013582,2]
[421647661,1778016643000,-462.86,0.00013595,2]
[421647654,1778016643000,-462.86,0.00013526,2]
[421647642,1778016643000,-500.0,0.00013389,2]
[421647645,1778016643000,-462.86,0.00013469,2]
[421647653,1778016643000,-462.86,0.00013498,2]
[421647662,1778016643000,-1352.19909193,0.00013606,2]
[421647655,1778016643000,-468.84,0.00013537,2]
[421647658,1778016643000,-468.84,0.00013572,2]
[421647663,1778016643000,-468.84,0.00013616,2]
[421647664,1778016643000,-462.86,0.00013625,2]
[421647660,1778016643000,-468.84559957,0.00013582,2]
[421647690,1778016644000,-738.27620382,0.00014638,2]
[421647689,1778016644000,-324.01,0.00014485,2]
[421647688,1778016644000,-1352.19909193,0.00014469,2]
[421647691,1778016644000,-33118.4782,0.000147,2]
[421647686,1778016644000,-227.459345,0.00014406,2]
[421647692,1778016644000,-95765.37680149,0.000147,2]
[421647693,1778016644000,-4421.96778299,0.000147,2]
[421647694,1778016644000,-722.8955016,0.000147,2]
[421647687,1778016644000,-14307.8893307,0.00014428,2]
[421647695,1778016645000,-250.0,0.00012268,2]
[421647696,1778016645000,-278.56,0.000147,2]
[421647699,1778016646000,-8458.27488243,0.000147,2]
[421647697,1778016646000,-1352.19909193,0.00014684,2]
[421647698,1778016646000,-1147.80090807,0.000147,2]
[421647904,1778016966000,150.0,0.0001862,7]
[421647903,1778016966000,152.0,0.0001862,7]
[421647906,1778016994000,247.59,5.167e-05,2]
[421647909,1778016995000,247.59,5.983e-05,2]
[421647907,1778016995000,247.59,5.439e-05,2]
[421647910,1778016995000,247.59,6.255e-05,2]
[421647908,1778016995000,247.59,5.711e-05,2]
[421647913,1778016996000,247.59,7.071e-05,2]
[421647912,1778016996000,247.59,6.799e-05,2]
[421647911,1778016996000,247.59,6.527e-05,2]
[421647917,1778016997000,247.59,8.158e-05,2]
[421647916,1778016997000,247.59,7.886e-05,2]
[421647915,1778016997000,247.59,7.614e-05,2]
[421647914,1778016997000,247.59,7.342e-05,2]
[421647920,1778017008000,-247.59,8.43e-05,2]
[421647921,1778017008000,-247.59,8.702e-05,2]
[421647922,1778017008000,-247.59,8.974e-05,2]
[421647923,1778017008000,-1142.17695249,9.04e-05,2]
[421647932,1778017755000,-300.0,9.336e-05,2]
[421647931,1778017755000,-300.0,9.336e-05,2]
[421647930,1778017755000,-431.26,9.32e-05,2]
[421647929,1778017755000,-200.0,9.267e-05,2]
[421647928,1778017755000,-247.59,9.246e-05,2]
[421647926,1778017755000,-267.0,9.04e-05,2]
[421647927,1778017755000,-200.0,9.143e-05,2]
[421647925,1778017755000,-326.06499328,9.04e-05,2]
[421647933,1778017755000,-3437.56383072,9.337e-05,2]
[421647935,1778017756000,17155.02606566,9.246e-05,5]
[421647934,1778017756000,35400.0,9.246e-05,5]
[421647936,1778017773000,152.0,0.0001862,7]
[421647937,1778017777000,150.0,0.0001862,7]
[421647940,1778017798000,160.45,7.865e-05,2]
[421647939,1778017798000,160.45,6.292e-05,2]
[421647938,1778017798000,160.45,4.719e-05,2]
[421647963,1778017831000,-420.0,0.0001027,2]
[421647961,1778017831000,-392.0,0.0001027,2]
[421647959,1778017831000,-1147.79,0.00010027,2]
[421647955,1778017831000,-247.59,9.79e-05,2]
[421647958,1778017831000,-250.0,9.944e-05,2]
[421647957,1778017831000,-1609.63,9.903e-05,2]
[421647952,1778017831000,-777.83,9.533e-05,2]
[421647954,1778017831000,-195.52,9.685e-05,2]
[421647953,1778017831000,-479.8,9.593e-05,2]
[421647960,1778017831000,-247.59,0.00010062,2]
[421647950,1778017831000,-160.45,9.438e-05,2]
[421647951,1778017831000,-247.59,9.518e-05,2]
[421647949,1778017831000,-31208.20616928,9.337e-05,2]
[421647948,1778017831000,-270.0,9.337e-05,2]
[421647945,1778017831000,-1200.0,9.336e-05,2]
[421647947,1778017831000,-300.0,9.336e-05,2]
[421647946,1778017831000,-300.0,9.336e-05,2]
[421647972,1778017831000,-500.0,0.00010486,2]
[421647956,1778017831000,-163.71,9.855e-05,2]
[421647971,1778017831000,-500.0,0.00010486,2]
[421647987,1778017831000,-500.0,0.00010486,2]
[421647964,1778017831000,-1147.79,0.00010278,2]
[421647962,1778017831000,-1680.0,0.0001027,2]
[421647978,1778017831000,-500.0,0.00010486,2]
[421647977,1778017831000,-500.0,0.00010486,2]
[421647982,1778017831000,-500.0,0.00010486,2]
[421647981,1778017831000,-500.0,0.00010486,2]
[421647976,1778017831000,-500.0,0.00010486,2]
[421647984,1778017831000,-500.0,0.00010486,2]
[421647983,1778017831000,-500.0,0.00010486,2]
[421647980,1778017831000,-500.0,0.00010486,2]
[421647986,1778017831000,-500.0,0.00010486,2]
[421647974,1778017831000,-500.0,0.00010486,2]
[421647975,1778017831000,-500.0,0.00010486,2]
[421647973,1778017831000,-500.0,0.00010486,2]
[421647967,1778017831000,-3505.517,0.00010387,2]
[421647969,1778017831000,-150.0,0.00010486,2]
[421647966,1778017831000,-247.59,0.00010334,2]
[421647970,1778017831000,-500.0,0.00010486,2]
[421647968,1778017831000,-585.1396,0.00010484,2]
[421647965,1778017831000,-166.66,0.00010288,2]
[421647979,1778017831000,-500.0,0.00010486,2]
[421648015,1778017832000,-500.0,0.00010486,2]
[421648017,1778017832000,-500.0,0.00010486,2]
[421648013,1778017832000,-500.0,0.00010486,2]
[421648012,1778017832000,-500.0,0.00010486,2]
[421648010,1778017832000,-500.0,0.00010486,2]
[421648014,1778017832000,-500.0,0.00010486,2]
[421648011,1778017832000,-500.0,0.00010486,2]
[421648016,1778017832000,-500.0,0.00010486,2]
[421648021,1778017832000,-500.0,0.00010486,2]
[421648018,1778017832000,-500.0,0.00010486,2]
[421648019,1778017832000,-500.0,0.00010486,2]
[421648022,1778017832000,-500.0,0.00010486,2]
[421648028,1778017832000,-500.0,0.00010486,2]
[421648027,1778017832000,-500.0,0.00010486,2]
[421648023,1778017832000,-500.0,0.00010486,2]
[421648025,1778017832000,-500.0,0.00010486,2]
[421648007,1778017832000,-500.0,0.00010486,2]
[421648020,1778017832000,-500.0,0.00010486,2]
[421648008,1778017832000,-500.0,0.00010486,2]
[421647993,1778017832000,-500.0,0.00010486,2]
[421648006,1778017832000,-500.0,0.00010486,2]
[421648033,1778017832000,-500.0,0.00010486,2]
[421647988,1778017832000,-500.0,0.00010486,2]
[421647989,1778017832000,-500.0,0.00010486,2]
[421647990,1778017832000,-500.0,0.00010486,2]
[421647995,1778017832000,-500.0,0.00010486,2]
[421647996,1778017832000,-500.0,0.00010486,2]
[421647994,1778017832000,-500.0,0.00010486,2]
[421647997,1778017832000,-500.0,0.00010486,2]
[421648009,1778017832000,-500.0,0.00010486,2]
[421647991,1778017832000,-500.0,0.00010486,2]
[421647998,1778017832000,-500.0,0.00010486,2]
[421648000,1778017832000,-500.0,0.00010486,2]
[421648002,1778017832000,-500.0,0.00010486,2]
[421648005,1778017832000,-500.0,0.00010486,2]
[421647999,1778017832000,-500.0,0.00010486,2]
[421648001,1778017832000,-500.0,0.00010486,2]
[421648004,1778017832000,-500.0,0.00010486,2]
[421648003,1778017832000,-500.0,0.00010486,2]
[421647992,1778017832000,-500.0,0.00010486,2]
[421648026,1778017832000,-500.0,0.00010486,2]
[421648024,1778017832000,-500.0,0.00010486,2]
[421648032,1778017832000,-500.0,0.00010486,2]
[421648057,1778017832000,-583.01914799,0.00010486,2]
[421648054,1778017832000,-500.0,0.00010486,2]
[421648051,1778017832000,-224.71723319,0.00010486,2]
[421648055,1778017832000,-583.01914799,0.00010486,2]
[421648069,1778017832000,-19002.62331778,0.00010487,2]
[421648059,1778017832000,-583.01914799,0.00010486,2]
[421648058,1778017832000,-500.0,0.00010486,2]
[421648060,1778017832000,-500.0,0.00010486,2]
[421648048,1778017832000,-500.0,0.00010486,2]
[421648061,1778017832000,-583.01914799,0.00010486,2]
[421648063,1778017832000,-583.01914799,0.00010486,2]
[421648068,1778017832000,-30611.15857763,0.00010487,2]
[421648066,1778017832000,-5408.4869271,0.00010487,2]
[421648067,1778017832000,-80669.86153261,0.00010487,2]
[421648064,1778017832000,-541.509574,0.00010486,2]
[421648070,1778017832000,-1019.52202029,0.00010487,2]
[421648071,1778017832000,-1039.55708434,0.00010487,2]
[421648029,1778017832000,-500.0,0.00010486,2]
[421648062,1778017832000,-500.0,0.00010486,2]
[421648049,1778017832000,-500.0,0.00010486,2]
[421648065,1778017832000,-541.509574,0.00010486,2]
[421648050,1778017832000,-500.0,0.00010486,2]
[421648031,1778017832000,-500.0,0.00010486,2]
[421648056,1778017832000,-500.0,0.00010486,2]
[421648034,1778017832000,-500.0,0.00010486,2]
[421648044,1778017832000,-500.0,0.00010486,2]
[421648038,1778017832000,-153.80517008,0.00010486,2]
[421648072,1778017832000,-402.11590291,0.00010487,2]
[421648040,1778017832000,-500.0,0.00010486,2]
[421648045,1778017832000,-500.0,0.00010486,2]
[421648041,1778017832000,-500.0,0.00010486,2]
[421648030,1778017832000,-500.0,0.00010486,2]
[421648039,1778017832000,-500.0,0.00010486,2]
[421648042,1778017832000,-500.0,0.00010486,2]
[421648035,1778017832000,-500.0,0.00010486,2]
[421648036,1778017832000,-500.0,0.00010486,2]
[421648037,1778017832000,-500.0,0.00010486,2]
[421648053,1778017832000,-500.0,0.00010486,2]
[421648046,1778017832000,-500.0,0.00010486,2]
[421648047,1778017832000,-500.0,0.00010486,2]
[421648052,1778017832000,-583.01914799,0.00010486,2]
[421648043,1778017832000,-500.0,0.00010486,2]
[421648082,1778017837000,-380.52932165,0.00010487,2]
[421648081,1778017837000,-46443.99070954,0.00010487,2]
[421648080,1778017837000,-1768.4626272,0.00010487,2]
[421648084,1778017837000,-4911.37788427,0.00010487,2]
[421648085,1778017837000,-1650.61375639,0.00010487,2]
[421648086,1778017837000,-764.8018764,0.00010487,2]
[421648083,1778017837000,-324.57757624,0.00010487,2]
[421648124,1778017838000,-2000.0,0.00011836,2]
[421648130,1778017838000,-349.34062511,0.00012336,2]
[421648121,1778017838000,-255.0,0.00011514,2]
[421648122,1778017838000,-166.66,0.00011561,2]
[421648135,1778017838000,-823.0,0.00012426,2]
[421648131,1778017838000,-905.97339159,0.00012412,2]
[421648133,1778017838000,-3292.0,0.00012426,2]
[421648125,1778017838000,-905.97339159,0.00011914,2]
[421648127,1778017838000,-195.52,0.00012106,2]
[421648129,1778017838000,-1852.42,0.0001222,2]
[421648126,1778017838000,-166.66,0.00011986,2]
[421648123,1778017838000,-1500.0,0.00011668,2]
[421648157,1778017838000,-150.0,0.00013488,2]
[421648137,1778017838000,-392.0,0.00012438,2]
[421648141,1778017838000,-150.0,0.00012764,2]
[421648139,1778017838000,-433.0,0.00012646,2]
[421648145,1778017838000,-905.97339159,0.00012909,2]
[421648147,1778017838000,-2000.0,0.00013151,2]
[421648143,1778017838000,-2500.0,0.00012764,2]
[421648153,1778017838000,-150.0,0.00013488,2]
[421648151,1778017838000,-905.97339159,0.00013407,2]
[421648159,1778017838000,-150.0,0.00013488,2]
[421648149,1778017838000,-2726.01558816,0.00013312,2]
[421648155,1778017838000,-150.0,0.00013488,2]
[421648116,1778017838000,-1000.0,0.00011121,2]
[421648128,1778017838000,-2000.0,0.00012216,2]
[421648120,1778017838000,-905.97339159,0.00011416,2]
[421648088,1778017838000,-2000.0,0.00010521,2]
[421648114,1778017838000,-905.97339168,0.00011099,2]
[421648090,1778017838000,-500.0,0.00010573,2]
[421648087,1778017838000,-143796.28228565,0.00010487,2]
[421648091,1778017838000,-151.0,0.00010584,2]
[421648161,1778017838000,-4609.0,0.00013669,2]
[421648089,1778017838000,-1147.79,0.00010529,2]
[421648092,1778017838000,-3074.24062155,0.00010586,2]
[421648094,1778017838000,-192.01826908,0.00010699,2]
[421648093,1778017838000,-500.0,0.00010699,2]
[421648096,1778017838000,-383.9794922,0.00010699,2]
[421648097,1778017838000,-155.92761735,0.00010699,2]
[421648098,1778017838000,-500.0,0.00010699,2]
[421648102,1778017838000,-739.79976265,0.000107,2]
[421648100,1778017838000,-58113.14053461,0.000107,2]
[421648095,1778017838000,-500.0,0.00010699,2]
[421648101,1778017838000,-7904.62537552,0.000107,2]
[421648103,1778017838000,-1250.51494751,0.000107,2]
[421648104,1778017838000,-5318.27715893,0.000107,2]
[421648106,1778017838000,-1147.79,0.00010779,2]
[421648112,1778017838000,-1147.79,0.0001103,2]
[421648105,1778017838000,-166.66,0.00010712,2]
[421648108,1778017838000,-1849.78717266,0.000109,2]
[421648118,1778017838000,-2351.0,0.00011297,2]
[421648117,1778017838000,-166.66,0.00011137,2]
[421648115,1778017838000,-905.97339159,0.00011099,2]
[421648110,1778017838000,-150.0,0.00010959,2]
[421648119,1778017838000,-587.0,0.00011297,2]
[421648163,1778017838000,-1152.0,0.00013669,2]
[421648099,1778017838000,-500.0,0.00010699,2]
[421648166,1778017838000,-306.64215495,0.00013698,2]
[421648237,1778017838000,-155.0,0.00014799,2]
[421648233,1778017838000,-200.0,0.000147,2]
[421648231,1778017838000,-500.0,0.00014699,2]
[421648239,1778017838000,-152.0,0.000148,2]
[421648241,1778017838000,-153.0,0.00014811,2]
[421648245,1778017838000,-151.0,0.0001485,2]
[421648243,1778017838000,-200.0,0.00014847,2]
[421648247,1778017838000,-151.0,0.0001485,2]
[421648249,1778017838000,-194.486841,0.0001485,2]
[421648254,1778017838000,-194.486841,0.0001485,2]
[421648251,1778017838000,-194.486841,0.0001485,2]
[421648256,1778017838000,-151.0,0.0001485,2]
[421648258,1778017838000,-151.0,0.0001485,2]
[421648260,1778017838000,-193.807584,0.0001485,2]
[421648263,1778017838000,-151.0,0.0001485,2]
[421648266,1778017838000,-151.0,0.0001485,2]
[421648268,1778017838000,-2000.0,0.0001485,2]
[421648272,1778017838000,-2000.0,0.0001485,2]
[421648270,1778017838000,-2000.0,0.0001485,2]
[421648278,1778017838000,-2000.0,0.0001485,2]
[421648280,1778017838000,-1750.0,0.0001485,2]
[421648274,1778017838000,-2000.0,0.0001485,2]
[421648276,1778017838000,-2000.0,0.0001485,2]
[421648282,1778017838000,-1750.0,0.0001485,2]
[421648164,1778017838000,-500.0,0.00013698,2]
[421648229,1778017838000,-500.0,0.00014699,2]
[421648227,1778017838000,-500.0,0.00014699,2]
[421648252,1778017838000,-194.486841,0.0001485,2]
[421648235,1778017838000,-1849.78717262,0.00014789,2]
[421648170,1778017838000,-500.0,0.00013698,2]
[421648225,1778017838000,-500.0,0.00014699,2]
[421648168,1778017838000,-500.0,0.00013698,2]
[421648174,1778017838000,-500.0,0.00013698,2]
[421648172,1778017838000,-500.0,0.00013698,2]
[421648176,1778017838000,-500.0,0.00013698,2]
[421648178,1778017838000,-166.66,0.00013699,2]
[421648187,1778017838000,-1609.63,0.00013865,2]
[421648185,1778017838000,-166.66,0.00013836,2]
[421648182,1778017838000,-1000.0,0.00013699,2]
[421648189,1778017838000,-736.0,0.00013884,2]
[421648191,1778017838000,-905.97339159,0.00013905,2]
[421648200,1778017838000,-166.66,0.0001411,2]
[421648180,1778017838000,-200.0,0.00013699,2]
[421648214,1778017838000,-305.837607,0.00014493,2]
[421648223,1778017838000,-500.0,0.00014699,2]
[421648202,1778017838000,-150.0,0.00014237,2]
[421648217,1778017838000,-195.52,0.00014527,2]
[421648218,1778017838000,-151.0,0.00014697,2]
[421648213,1778017838000,-2000.0,0.00014466,2]
[421648195,1778017838000,-1000.0,0.00014042,2]
[421648221,1778017838000,-500.0,0.00014699,2]
[421648210,1778017838000,-171.647669,0.00014403,2]
[421648204,1778017838000,-166.66,0.00014247,2]
[421648193,1778017838000,-166.66,0.00013973,2]
[421648206,1778017838000,-166.66,0.00014384,2]
[421648208,1778017838000,-905.97339159,0.00014402,2]
[421648323,1778017839000,-230.07499956,0.000149,2]
[421648335,1778017839000,-883.95371192,0.000149,2]
[421648321,1778017839000,-10000.0,0.000149,2]
[421648339,1778017839000,-161.86,0.00014924,2]
[421648337,1778017839000,-6715.36394084,0.000149,2]
[421648333,1778017839000,-1364.54393852,0.000149,2]
[421648347,1778017839000,-271.14947162,0.0001499,2]
[421648341,1778017839000,-150.0,0.00014986,2]
[421648327,1778017839000,-230.07499955,0.000149,2]
[421648343,1778017839000,-271.14947162,0.0001499,2]
[421648331,1778017839000,-905.97339159,0.000149,2]
[421648345,1778017839000,-271.14947162,0.0001499,2]
[421648319,1778017839000,-151.0,0.000149,2]
[421648329,1778017839000,-285.65202122,0.000149,2]
[421648317,1778017839000,-946.76418726,0.000149,2]
[421648290,1778017839000,-1750.0,0.0001485,2]
[421648302,1778017839000,-151.0,0.00014899,2]
[421648360,1778017839000,-156.0,0.00014999,2]
[421648284,1778017839000,-1750.0,0.0001485,2]
[421648286,1778017839000,-1750.0,0.0001485,2]
[421648288,1778017839000,-1750.0,0.0001485,2]
[421648292,1778017839000,-629.2808599,0.00014876,2]
[421648306,1778017839000,-482.603136,0.00014899,2]
[421648298,1778017839000,-151.0,0.00014899,2]
[421648309,1778017839000,-482.603136,0.00014899,2]
[421648312,1778017839000,-184.01603165,0.000149,2]
[421648311,1778017839000,-482.603136,0.00014899,2]
[421648296,1778017839000,-151.0,0.00014899,2]
[421648300,1778017839000,-151.0,0.00014899,2]
[421648304,1778017839000,-482.603136,0.00014899,2]
[421648315,1778017839000,-3296.43558961,0.000149,2]
[421648294,1778017839000,-151.0,0.00014897,2]
[421648358,1778017839000,-155.542,0.00014999,2]
[421648325,1778017839000,-230.07499955,0.000149,2]
[421648362,1778017839000,-209.39300781,0.00014999,2]
[421648401,1778017839000,-275.92445471,0.00014999,2]
[421648403,1778017839000,-151.0,0.00014999,2]
[421648407,1778017839000,-513.164834,0.00014999,2]
[421648411,1778017839000,-513.164834,0.00014999,2]
[421648405,1778017839000,-513.164834,0.00014999,2]
[421648409,1778017839000,-513.164834,0.00014999,2]
[421648399,1778017839000,-500.0,0.00014999,2]
[421648413,1778017839000,-151.0,0.00014999,2]
[421648417,1778017839000,-241.541952,0.00014999,2]
[421648419,1778017839000,-821.0,0.00015,5]
[421648423,1778017839000,-496678.46954238,0.00015,2]
[421648421,1778017839000,-832.0,0.00015,5]
[421648427,1778017839000,-1852.927,0.00015,2]
[421648350,1778017839000,-200.0,0.00014995,2]
[421648415,1778017839000,-500.0,0.00014999,2]
[421648395,1778017839000,-500.0,0.00014999,2]
[421648397,1778017839000,-500.0,0.00014999,2]
[421648393,1778017839000,-500.0,0.00014999,2]
[421648356,1778017839000,-1122.71385098,0.00014999,5]
[421648364,1778017839000,-500.0,0.00014999,2]
[421648366,1778017839000,-500.0,0.00014999,2]
[421648353,1778017839000,-155.0,0.00014998,2]
[421648352,1778017839000,-151.0,0.00014997,2]
[421648370,1778017839000,-500.0,0.00014999,2]
[421648368,1778017839000,-500.0,0.00014999,2]
[421648372,1778017839000,-500.0,0.00014999,2]
[421648374,1778017839000,-531.99597183,0.00014999,2]
[421648378,1778017839000,-500.0,0.00014999,2]
[421648376,1778017839000,-836.73445922,0.00014999,2]
[421648380,1778017839000,-500.0,0.00014999,2]
[421648391,1778017839000,-500.0,0.00014999,2]
[421648386,1778017839000,-376.74585806,0.00014999,2]
[421648389,1778017839000,-500.0,0.00014999,2]
[421648495,1778017840000,-5267.86865921,0.00015,2]
[421648494,1778017840000,-1575.5364189,0.00011099,2]
[421648550,1778017840000,-0.00024452,0.00015,2]
[421648552,1778017840000,-270.59953879,0.00015,2]
[421648510,1778017840000,-600.0,0.00015,2]
[421648704,1778017843000,-347.22241524,0.00015,2]
[421648721,1778017846000,-337.21125,0.00011099,2]
[421648720,1778017846000,-300.0,0.00011099,2]
[421648729,1778018396000,299.99,0.00019339,7]
[421648730,1778018400000,150.0,0.00019339,7]
[421648731,1778018447000,958800.36203029,0.0003013,120]
[421648732,1778018637000,158.54,6.535e-05,2]
[421648735,1778018637000,158.54,7.842e-05,2]
[421648734,1778018637000,158.54,7.406e-05,2]
[421648733,1778018637000,158.54,6.97e-05,2]
[421648736,1778018638000,158.54,8.277e-05,2]
[421648751,1778018738000,-500.0,0.0001,2]
[421648753,1778018738000,-160.39641372,0.0001,2]
[421648754,1778018738000,-255.51679226,0.0001,2]
[421648757,1778018738000,-158.54,0.0001002,2]
[421648756,1778018738000,-173.43189356,0.0001,2]
[421648758,1778018738000,-158.54,0.00010455,2]
[421648752,1778018738000,-500.0,0.0001,2]
[421648755,1778018738000,-173.43189356,0.0001,2]
[421648750,1778018738000,-500.0,0.0001,2]
[421648745,1778018738000,-250.0,9.584e-05,2]
[421648749,1778018738000,-193.0,0.0001,2]
[421648747,1778018738000,-1200.0,9.999e-05,2]
[421648744,1778018738000,-158.54,9.584e-05,2]
[421648746,1778018738000,-300.0,9.999e-05,2]
[421648743,1778018738000,-158.54,9.149e-05,2]
[421648742,1778018738000,-263.0,8.713e-05,2]
[421648741,1778018738000,-158.54,8.713e-05,2]
[421648748,1778018738000,-300.0,9.999e-05,2]
[421648759,1778018738000,-234.0170913,0.00010597,2]
[421648774,1778018738000,-158.54,0.00012634,2]
[421648763,1778018738000,-250.0,0.00010999,2]
[421648760,1778018738000,-158.54,0.00010891,2]
[421648779,1778018738000,-150.17,0.00013583,2]
[421648777,1778018738000,-200.0,0.00013298,2]
[421648778,1778018738000,-150.0,0.000135,2]
[421648776,1778018738000,-426.7,0.00013147,2]
[421648773,1778018738000,-158.54,0.00012198,2]
[421648772,1778018738000,-707.0,0.00012099,2]
[421648771,1778018738000,-500.0,0.00011952,2]
[421648775,1778018738000,-158.54,0.00013069,2]
[421648769,1778018738000,-275.97,0.000116,2]
[421648768,1778018738000,-158.54,0.00011327,2]
[421648767,1778018738000,-262.8859303,0.00011,2]
[421648766,1778018738000,-1680.0,0.00010999,2]
[421648765,1778018738000,-250.0,0.00010999,2]
[421648761,1778018738000,-539.57245357,0.00010989,2]
[421648764,1778018738000,-193.0,0.00010999,2]
[421648770,1778018738000,-158.54,0.00011762,2]
[421648762,1778018738000,-173.43189356,0.00010989,2]
[421648792,1778018739000,-500.0,0.00014743,2]
[421648793,1778018739000,-500.0,0.00014743,2]
[421648794,1778018739000,-500.0,0.00014743,2]
[421648800,1778018739000,-500.0,0.00014743,2]
[421648795,1778018739000,-500.0,0.00014743,2]
[421648796,1778018739000,-500.0,0.00014743,2]
[421648791,1778018739000,-500.0,0.00014743,2]
[421648797,1778018739000,-600.0,0.00014743,2]
[421648801,1778018739000,-500.0,0.00014743,2]
[421648782,1778018739000,-150.0,0.00013697,2]
[421648787,1778018739000,-161.86,0.00014006,2]
[421648788,1778018739000,-2000.0,0.0001424,2]
[421648784,1778018739000,-500.0,0.00013698,2]
[421648785,1778018739000,-194.4,0.00013715,2]